[Event "Live Chess"]
[Site "Chess.com"]
[Date "2023.05.20"]
[Round "-"]
[White "domrobson"]
[Black "weibs440"]
[Result "1-0"]
[WhiteElo "1776"]
[BlackElo "951"]
[TimeControl "300"]
[EndTime "15:59:37 PDT"]
[Termination "domrobson won by checkmate"]

1. d4 {[%clk 0:04:59.1]} 1... f5 {[%clk 0:04:57.2]} 2. g3 {[%clk 0:04:57.8]}
2... Nf6 {[%clk 0:04:52.4]} 3. Bg2 {[%clk 0:04:55.9]} 3... e6 {[%clk 0:04:51.5]}
4. c4 {[%clk 0:04:54.8]} 4... Be7 {[%clk 0:04:47.2]} 5. Nf3 {[%clk 0:04:54.1]}
5... d6 {[%clk 0:04:46.3]} 6. O-O {[%clk 0:04:53.6]} 6... O-O {[%clk 0:04:45.4]}
7. Nc3 {[%clk 0:04:52.9]} 7... Ne4 {[%clk 0:04:40.4]} 8. Nxe4 {[%clk 0:04:51.6]}
8... fxe4 {[%clk 0:04:40.3]} 9. Nd2 {[%clk 0:04:51]} 9... d5 {[%clk 0:04:39]}
10. cxd5 {[%clk 0:04:48.5]} 10... exd5 {[%clk 0:04:38.9]} 11. Qb3 {[%clk
0:04:47.3]} 11... c6 {[%clk 0:04:09]} 12. Nxe4 {[%clk 0:04:42.5]} 12... Kh8
{[%clk 0:03:55]} 13. Nc5 {[%clk 0:04:40]} 13... Bxc5 {[%clk 0:03:34.8]} 14. dxc5
{[%clk 0:04:37.9]} 14... b6 {[%clk 0:03:29.3]} 15. cxb6 {[%clk 0:04:36]} 15...
axb6 {[%clk 0:03:19.4]} 16. Bf4 {[%clk 0:04:32.4]} 16... Nd7 {[%clk 0:03:16.5]}
17. Rac1 {[%clk 0:04:29.6]} 17... Nc5 {[%clk 0:03:11.2]} 18. Qc2 {[%clk
0:04:23.6]} 18... Rxa2 {[%clk 0:03:04.1]} 19. Qb1 {[%clk 0:04:18.2]} 19... Ra8
{[%clk 0:02:53.6]} 20. b4 {[%clk 0:04:16.6]} 20... Bf5 {[%clk 0:02:38.3]} 21.
Qb2 {[%clk 0:04:00.6]} 21... Ne4 {[%clk 0:02:29.6]} 22. Rxc6 {[%clk 0:03:55.4]}
22... Qd7 {[%clk 0:02:11.1]} 23. Rfc1 {[%clk 0:03:50.7]} 23... b5 {[%clk
0:01:53.5]} 24. Rc7 {[%clk 0:03:49.2]} 24... Qe6 {[%clk 0:01:46.5]} 25. Qxg7#
{[%clk 0:03:47.7]} 1-0

[Event "Live Chess"]
[Site "Chess.com"]
[Date "2023.05.20"]
[Round "-"]
[White "flyingpuffins"]
[Black "Long1968"]
[Result "1-0"]
[WhiteElo "1930"]
[BlackElo "1210"]
[TimeControl "300"]
[EndTime "15:59:54 PDT"]
[Termination "flyingpuffins won by resignation"]

1. d4 {[%clk 0:04:59.3]} 1... d5 {[%clk 0:04:54.5]} 2. e4 {[%clk 0:04:56.4]}
2... e6 {[%clk 0:04:49.7]} 3. e5 {[%clk 0:04:51]} 3... c5 {[%clk 0:04:46.8]} 4.
c3 {[%clk 0:04:48.8]} 4... Nc6 {[%clk 0:04:43.6]} 5. Nf3 {[%clk 0:04:47.8]} 5...
Qb6 {[%clk 0:04:41]} 6. Bd3 {[%clk 0:04:46.9]} 6... cxd4 {[%clk 0:04:38.6]} 7.
O-O {[%clk 0:04:45.6]} 7... dxc3 {[%clk 0:04:36.2]} 8. Nxc3 {[%clk 0:04:45.5]}
8... Nge7 {[%clk 0:04:26.7]} 9. h4 {[%clk 0:04:43.6]} 9... g6 {[%clk 0:04:22.5]}
10. Bg5 {[%clk 0:04:39.5]} 10... Bg7 {[%clk 0:04:19.3]} 11. Qd2 {[%clk
0:04:35.7]} 11... O-O {[%clk 0:04:13.6]} 12. Bf6 {[%clk 0:04:34.1]} 12... Nf5
{[%clk 0:04:05.9]} 13. Bxf5 {[%clk 0:04:27.4]} 13... exf5 {[%clk 0:03:40.3]} 14.
Nxd5 {[%clk 0:04:26]} 14... Be6 {[%clk 0:03:29.7]} 15. Nxb6 {[%clk 0:04:24.3]}
1-0

[Event "Live Chess"]
[Site "Chess.com"]
[Date "2023.05.21"]
[Round "-"]
[White "LutherSullivan"]
[Black "ExIsambard"]
[Result "1-0"]
[WhiteElo "2067"]
[BlackElo "1958"]
[TimeControl "300"]
[EndTime "16:00:00 PDT"]
[Termination "LutherSullivan won - game abandoned"]

1. e4 {[%clk 0:04:57.3]} 1... Nc6 {[%clk 0:04:58]} 2. Nf3 {[%clk 0:04:56.4]}
2... d5 {[%clk 0:04:57]} 3. exd5 {[%clk 0:04:53.7]} 3... Qxd5 {[%clk 0:04:56.9]}
4. Nc3 {[%clk 0:04:53.1]} 4... Qh5 {[%clk 0:04:53.2]} 5. d4 {[%clk 0:04:50.3]}
5... Bg4 {[%clk 0:04:51.8]} 6. Be2 {[%clk 0:04:48.5]} 6... Nf6 {[%clk
0:04:51.3]} 7. Be3 {[%clk 0:04:33.2]} 7... O-O-O {[%clk 0:04:49.8]} 8. O-O
{[%clk 0:03:39.1]} 8... e5 {[%clk 0:04:42.2]} 9. d5 {[%clk 0:03:14]} 9... e4
{[%clk 0:04:33.4]} 10. Ng5 {[%clk 0:02:59.3]} 10... Rxd5 {[%clk 0:04:25.3]} 11.
Nxd5 {[%clk 0:02:32.8]} 11... Bxe2 {[%clk 0:04:23.5]} 12. Qd2 {[%clk 0:02:26.5]}
1-0

[Event "Live Chess"]
[Site "Chess.com"]
[Date "2023.05.21"]
[Round "-"]
[White "LiamBellwood"]
[Black "Man-Del-Brot"]
[Result "1-0"]
[WhiteElo "2064"]
[BlackElo "1067"]
[TimeControl "300"]
[EndTime "16:00:04 PDT"]
[Termination "LiamBellwood won by resignation"]

1. d4 {[%clk 0:04:59.6]} 1... Nf6 {[%clk 0:04:57.1]} 2. Nc3 {[%clk 0:04:58.8]}
2... d5 {[%clk 0:04:55.5]} 3. Bf4 {[%clk 0:04:58.3]} 3... Nbd7 {[%clk
0:04:52.7]} 4. Nb5 {[%clk 0:04:56.5]} 4... e5 {[%clk 0:04:43.3]} 5. Bxe5 {[%clk
0:04:53.9]} 5... Nxe5 {[%clk 0:04:41.1]} 6. dxe5 {[%clk 0:04:53.8]} 6... Nd7
{[%clk 0:04:39.6]} 7. Qxd5 {[%clk 0:04:51.4]} 7... c6 {[%clk 0:04:21.1]} 8. Nd6+
{[%clk 0:04:50.5]} 8... Bxd6 {[%clk 0:04:16]} 9. Qxd6 {[%clk 0:04:50.4]} 9...
Qa5+ {[%clk 0:03:54.5]} 10. b4 {[%clk 0:04:44]} 10... Qxe5 {[%clk 0:03:50.3]}
11. Qxe5+ {[%clk 0:04:43.5]} 11... Nxe5 {[%clk 0:03:49]} 12. Nf3 {[%clk
0:04:43.4]} 12... Nxf3+ {[%clk 0:03:44.6]} 13. exf3 {[%clk 0:04:43.3]} 13... O-O
{[%clk 0:03:43.3]} 14. Bd3 {[%clk 0:04:42.3]} 14... Re8+ {[%clk 0:03:32.2]} 15.
Kd2 {[%clk 0:04:41.6]} 15... Be6 {[%clk 0:03:26.7]} 16. a4 {[%clk 0:04:26.6]}
16... Rad8 {[%clk 0:03:25.1]} 17. Kc3 {[%clk 0:04:22.3]} 17... a6 {[%clk
0:03:16.8]} 18. Rhe1 {[%clk 0:04:20.9]} 18... Bc8 {[%clk 0:03:10.3]} 19. a5
{[%clk 0:04:19.9]} 19... Rxe1 {[%clk 0:02:52.3]} 20. Rxe1 {[%clk 0:04:19.8]}
20... g6 {[%clk 0:02:51.1]} 21. Re7 {[%clk 0:04:15.5]} 21... Kf8 {[%clk
0:02:30.2]} 22. Rc7 {[%clk 0:04:14.6]} 22... Ke8 {[%clk 0:02:12.4]} 23. Bc4
{[%clk 0:04:10.5]} 23... Be6 {[%clk 0:02:04.5]} 24. Bxe6 {[%clk 0:04:09.3]}
24... fxe6 {[%clk 0:02:02.6]} 25. Rxh7 {[%clk 0:04:07.6]} 25... Rd7 {[%clk
0:01:50.4]} 26. Rxd7 {[%clk 0:04:03.8]} 26... Kxd7 {[%clk 0:01:49]} 27. f4
{[%clk 0:04:03.7]} 27... Kd6 {[%clk 0:01:46.7]} 28. Kd4 {[%clk 0:04:03.1]} 28...
Ke7 {[%clk 0:01:40.9]} 29. g4 {[%clk 0:04:02.1]} 29... Kf6 {[%clk 0:01:39.7]}
30. h4 {[%clk 0:04:01.2]} 1-0

[Event "Live Chess"]
[Site "Chess.com"]
[Date "2023.05.21"]
[Round "-"]
[White "JoshMcK"]
[Black "birdseed45"]
[Result "0-1"]
[WhiteElo "1517"]
[BlackElo "1866"]
[TimeControl "300"]
[EndTime "16:00:27 PDT"]
[Termination "birdseed45 won by resignation"]

1. e4 {[%clk 0:04:55.1]} 1... c5 {[%clk 0:04:59.2]} 2. c3 {[%clk 0:04:53.8]}
2... Nc6 {[%clk 0:04:58.2]} 3. d4 {[%clk 0:04:51.6]} 3... cxd4 {[%clk
0:04:58.1]} 4. cxd4 {[%clk 0:04:51.4]} 4... d5 {[%clk 0:04:57.7]} 5. exd5 {[%clk
0:04:49.7]} 5... Qxd5 {[%clk 0:04:56.1]} 6. Nf3 {[%clk 0:04:49.6]} 6... Bg4
{[%clk 0:04:54.1]} 7. Nc3 {[%clk 0:04:46.6]} 7... Bxf3 {[%clk 0:04:51.2]} 8.
Nxd5 {[%clk 0:04:45.2]} 8... Bxd1 {[%clk 0:04:49.3]} 9. Nc7+ {[%clk 0:04:43.7]}
9... Kd7 {[%clk 0:04:47.3]} 10. Nxa8 {[%clk 0:04:43.6]} 10... Bg4 {[%clk
0:04:41.8]} 11. Bf4 {[%clk 0:04:40.3]} 11... e6 {[%clk 0:04:31.5]} 12. Nc7
{[%clk 0:04:38.3]} 12... Bb4+ {[%clk 0:04:27.4]} 13. Bd2 {[%clk 0:04:32.6]}
13... Bxd2+ {[%clk 0:04:25.7]} 14. Kxd2 {[%clk 0:04:32.5]} 14... Kxc7 {[%clk
0:04:24.1]} 15. f3 {[%clk 0:04:31.5]} 15... Bf5 {[%clk 0:04:20.6]} 16. Bd3
{[%clk 0:04:30.1]} 16... Nge7 {[%clk 0:04:15.5]} 17. Rac1 {[%clk 0:04:27]} 17...
Bxd3 {[%clk 0:04:06.7]} 18. Kxd3 {[%clk 0:04:25.1]} 18... Nd5 {[%clk 0:04:06.3]}
19. a3 {[%clk 0:04:22.9]} 19... Rd8 {[%clk 0:04:00.7]} 20. b4 {[%clk 0:04:21.3]}
20... a6 {[%clk 0:03:58.2]} 21. Rc2 {[%clk 0:04:18.1]} 21... Nf4+ {[%clk
0:03:49.6]} 22. Ke3 {[%clk 0:04:16.2]} 22... Ng6 {[%clk 0:03:45.7]} 23. a4
{[%clk 0:04:10]} 23... Kb8 {[%clk 0:03:40.7]} 24. b5 {[%clk 0:04:08.7]} 24...
axb5 {[%clk 0:03:38]} 25. axb5 {[%clk 0:04:08]} 25... Nxd4 {[%clk 0:03:35.1]}
26. Ra2 {[%clk 0:04:05]} 26... Nxb5 {[%clk 0:03:25.1]} 27. Rha1 {[%clk
0:04:02.4]} 27... Nc7 {[%clk 0:03:14.8]} 28. Ra5 {[%clk 0:03:51.6]} 28... Ne7
{[%clk 0:03:11.3]} 29. R5a4 {[%clk 0:03:50.4]} 29... Ned5+ {[%clk 0:03:05.1]}
30. Kf2 {[%clk 0:03:48.6]} 30... Kc8 {[%clk 0:03:01]} 31. Rc1 {[%clk 0:03:40.1]}
31... Kd7 {[%clk 0:02:57.9]} 32. Ra7 {[%clk 0:03:36.7]} 32... Rb8 {[%clk
0:02:54.7]} 33. Rb1 {[%clk 0:03:34]} 33... b6 {[%clk 0:02:45.9]} 34. Ra2 {[%clk
0:03:28]} 34... Kd6 {[%clk 0:02:43]} 35. Rab2 {[%clk 0:03:25.2]} 35... b5 {[%clk
0:02:40]} 36. h3 {[%clk 0:03:22.2]} 36... b4 {[%clk 0:02:38]} 37. Ke2 {[%clk
0:03:20.1]} 37... Nc3+ {[%clk 0:02:35.5]} 0-1

[Event "Live Chess"]
[Site "Chess.com"]
[Date "2023.05.21"]
[Round "-"]
[White "SupremeTactician"]
[Black "HD_IN4k"]
[Result "1-0"]
[WhiteElo "2334"]
[BlackElo "391"]
[TimeControl "300"]
[EndTime "16:00:30 PDT"]
[Termination "SupremeTactician won by checkmate"]

1. e4 {[%clk 0:04:58.5]} 1... f5 {[%clk 0:04:53.5]} 2. exf5 {[%clk 0:04:57.2]}
2... d5 {[%clk 0:04:52.1]} 3. Qh5+ {[%clk 0:04:53.3]} 3... Kd7 {[%clk
0:04:29.6]} 4. Nf3 {[%clk 0:04:52.3]} 4... e5 {[%clk 0:04:24.8]} 5. Nxe5+ {[%clk
0:04:50.7]} 5... Kd6 {[%clk 0:04:19.2]} 6. Nf7+ {[%clk 0:04:47.9]} 6... Kd7
{[%clk 0:04:08.5]} 7. Nxd8 {[%clk 0:04:45.9]} 7... Kxd8 {[%clk 0:04:08.4]} 8. d4
{[%clk 0:04:44.3]} 8... g6 {[%clk 0:04:06.3]} 9. Bg5+ {[%clk 0:04:41.7]} 9...
Ne7 {[%clk 0:04:03.5]} 10. fxg6 {[%clk 0:04:40.7]} 10... Nc6 {[%clk 0:03:45.9]}
11. gxh7 {[%clk 0:04:36.1]} 11... Bf5 {[%clk 0:03:36.7]} 12. Bxe7+ {[%clk
0:04:33.7]} 12... Bxe7 {[%clk 0:03:32.8]} 13. Qxf5 {[%clk 0:04:32.7]} 13... Rxh7
{[%clk 0:03:32.5]} 14. Qxh7 {[%clk 0:04:32]} 14... Bb4+ {[%clk 0:03:28.9]} 15.
c3 {[%clk 0:04:30.8]} 15... Ba5 {[%clk 0:03:26.2]} 16. b4 {[%clk 0:04:29.2]}
16... Bb6 {[%clk 0:03:23.9]} 17. a4 {[%clk 0:04:28.1]} 17... a5 {[%clk
0:03:14.5]} 18. b5 {[%clk 0:04:27.2]} 18... Ne7 {[%clk 0:03:07.3]} 19. Qh8+
{[%clk 0:04:24.5]} 19... Kd7 {[%clk 0:03:02.9]} 20. Qxa8 {[%clk 0:04:23]} 20...
c6 {[%clk 0:02:58.5]} 21. Qxb7+ {[%clk 0:04:21.9]} 21... Ke6 {[%clk 0:02:55.3]}
22. Qxb6 {[%clk 0:04:20.2]} 22... Nf5 {[%clk 0:02:53]} 23. Qxc6+ {[%clk
0:04:14.9]} 23... Ke7 {[%clk 0:02:49.9]} 24. Qxd5 {[%clk 0:04:13.6]} 24... Kf6
{[%clk 0:02:48.6]} 25. Qxf5+ {[%clk 0:04:12]} 25... Kxf5 {[%clk 0:02:47.2]} 26.
b6 {[%clk 0:04:11.9]} 26... Ke6 {[%clk 0:02:45.6]} 27. b7 {[%clk 0:04:11.8]}
27... Kd7 {[%clk 0:02:43.6]} 28. b8=Q {[%clk 0:04:11.2]} 28... Kc6 {[%clk
0:02:26.1]} 29. Bb5+ {[%clk 0:04:08.4]} 29... Kd5 {[%clk 0:02:24]} 30. Qe5#
{[%clk 0:04:06.6]} 1-0

[Event "Live Chess"]
[Site "Chess.com"]
[Date "2023.05.21"]
[Round "-"]
[White "Shepherds_Pie"]
[Black "KeithArkell"]
[Result "0-1"]
[WhiteElo "1919"]
[BlackElo "2608"]
[TimeControl "300"]
[EndTime "16:00:34 PDT"]
[Termination "KeithArkell won by resignation"]

1. c4 {[%clk 0:04:53.6]} 1... c5 {[%clk 0:04:59.1]} 2. Nc3 {[%clk 0:04:52.2]}
2... Nc6 {[%clk 0:04:58]} 3. g3 {[%clk 0:04:50.5]} 3... g6 {[%clk 0:04:57.5]} 4.
Bg2 {[%clk 0:04:49.5]} 4... Bg7 {[%clk 0:04:57]} 5. b3 {[%clk 0:04:48]} 5... Nf6
{[%clk 0:04:54.1]} 6. Bb2 {[%clk 0:04:46.8]} 6... O-O {[%clk 0:04:53.7]} 7. d3
{[%clk 0:04:45.1]} 7... d6 {[%clk 0:04:50.4]} 8. Bxc6 {[%clk 0:04:41.8]} 8...
bxc6 {[%clk 0:04:49.3]} 9. Qd2 {[%clk 0:04:40.9]} 9... e5 {[%clk 0:04:45.8]} 10.
f4 {[%clk 0:04:38.1]} 10... exf4 {[%clk 0:04:43.6]} 11. gxf4 {[%clk 0:04:35.9]}
11... Re8 {[%clk 0:04:41.5]} 12. O-O-O {[%clk 0:04:34.2]} 12... d5 {[%clk
0:04:39.3]} 13. Nf3 {[%clk 0:04:28.8]} 13... d4 {[%clk 0:04:37.5]} 14. Na4
{[%clk 0:04:27.7]} 14... Nd7 {[%clk 0:04:32.2]} 15. Kb1 {[%clk 0:04:25.5]} 15...
Qe7 {[%clk 0:04:29.5]} 16. Rhe1 {[%clk 0:04:23.1]} 16... Qe3 {[%clk 0:04:28.3]}
17. Qxe3 {[%clk 0:04:20.5]} 17... Rxe3 {[%clk 0:04:28.2]} 18. Bc1 {[%clk
0:04:13.7]} 18... Re8 {[%clk 0:04:25.4]} 19. Ng5 {[%clk 0:04:10.2]} 19... f5
{[%clk 0:04:21.6]} 20. e3 {[%clk 0:04:02.4]} 20... dxe3 {[%clk 0:04:20]} 21.
Bxe3 {[%clk 0:03:59.7]} 21... h6 {[%clk 0:04:14.8]} 22. Nf3 {[%clk 0:03:54.9]}
22... Bf8 {[%clk 0:04:13.2]} 23. Bf2 {[%clk 0:03:41.7]} 23... Rxe1 {[%clk
0:04:10.5]} 24. Rxe1 {[%clk 0:03:40.5]} 24... Kf7 {[%clk 0:04:09.7]} 25. Ne5+
{[%clk 0:03:34.3]} 25... Nxe5 {[%clk 0:04:09]} 26. Rxe5 {[%clk 0:03:33.1]} 26...
Bd6 {[%clk 0:04:08.1]} 27. Re2 {[%clk 0:03:21.8]} 27... Bxf4 {[%clk 0:04:06.9]}
28. Bxc5 {[%clk 0:03:19.2]} 28... g5 {[%clk 0:04:03.9]} 29. Re7+ {[%clk
0:03:14.8]} 29... Kg6 {[%clk 0:04:03]} 30. h3 {[%clk 0:03:12.1]} 30... g4 {[%clk
0:04:00.9]} 31. hxg4 {[%clk 0:03:10.7]} 31... fxg4 {[%clk 0:04:00.3]} 32. Nc3
{[%clk 0:03:07.6]} 32... Bf5 {[%clk 0:03:58.9]} 33. Kc2 {[%clk 0:03:04.6]} 33...
Rd8 {[%clk 0:03:57.7]} 34. Ne4 {[%clk 0:02:50.2]} 34... g3 {[%clk 0:03:53.1]}
35. Bg1 {[%clk 0:02:37.9]} 35... g2 {[%clk 0:03:51.6]} 36. Rxa7 {[%clk
0:02:28.2]} 36... Bxe4 {[%clk 0:03:50.6]} 37. dxe4 {[%clk 0:02:26.7]} 37... Rd2+
{[%clk 0:03:49.4]} 38. Kc3 {[%clk 0:02:24.2]} 38... Rd1 {[%clk 0:03:48.3]} 39.
Bc5 {[%clk 0:02:20.5]} 39... g1=Q {[%clk 0:03:45.7]} 40. Bxg1 {[%clk 0:02:19.1]}
40... Rxg1 {[%clk 0:03:44.6]} 41. Ra6 {[%clk 0:02:17.6]} 41... h5 {[%clk
0:03:39.1]} 42. Rxc6+ {[%clk 0:02:15.8]} 42... Kg5 {[%clk 0:03:38.1]} 43. Rc8
{[%clk 0:02:13.4]} 43... Kg4 {[%clk 0:03:37.2]} 44. Rg8+ {[%clk 0:02:11.7]}
44... Bg5 {[%clk 0:03:36.4]} 45. e5 {[%clk 0:02:10.4]} 45... Re1 {[%clk
0:03:35.5]} 46. Kd4 {[%clk 0:02:07.7]} 46... h4 {[%clk 0:03:34.9]} 47. Kd5
{[%clk 0:02:05.8]} 47... h3 {[%clk 0:03:34.5]} 48. Rh8 {[%clk 0:02:04.5]} 48...
Bh4 {[%clk 0:03:33.5]} 49. e6 {[%clk 0:02:02.9]} 49... h2 {[%clk 0:03:31.3]} 50.
Rg8+ {[%clk 0:02:02.8]} 50... Kh3 {[%clk 0:03:30.4]} 0-1

[Event "Live Chess"]
[Site "Chess.com"]
[Date "2023.05.21"]
[Round "-"]
[White "Nazar_777"]
[Black "Brooms1989"]
[Result "0-1"]
[WhiteElo "1624"]
[BlackElo "1094"]
[TimeControl "300"]
[EndTime "16:00:37 PDT"]
[Termination "Brooms1989 won by checkmate"]

1. e3 {[%clk 0:04:57.7]} 1... e5 {[%clk 0:04:56.7]} 2. h4 {[%clk 0:04:51.5]}
2... d5 {[%clk 0:04:50.8]} 3. a3 {[%clk 0:04:50.7]} 3... Nc6 {[%clk 0:04:49.1]}
4. c4 {[%clk 0:04:50]} 4... dxc4 {[%clk 0:04:42]} 5. Bxc4 {[%clk 0:04:48.8]}
5... Nf6 {[%clk 0:04:41.5]} 6. Qb3 {[%clk 0:04:47.8]} 6... Qe7 {[%clk
0:04:31.3]} 7. Nf3 {[%clk 0:04:46.4]} 7... Be6 {[%clk 0:04:28.3]} 8. Bxe6 {[%clk
0:04:45]} 8... Qxe6 {[%clk 0:04:24.5]} 9. Ng5 {[%clk 0:04:43.8]} 9... Qxb3
{[%clk 0:04:21.9]} 10. Nc3 {[%clk 0:04:33.4]} 10... h6 {[%clk 0:04:12.8]} 11.
Nf3 {[%clk 0:04:31.9]} 11... O-O-O {[%clk 0:04:11.4]} 12. a4 {[%clk 0:04:30.6]}
12... e4 {[%clk 0:04:06.9]} 13. Ng1 {[%clk 0:04:27.4]} 13... Bb4 {[%clk
0:04:02]} 14. Nge2 {[%clk 0:04:25.2]} 14... Bxc3 {[%clk 0:04:00.7]} 15. bxc3
{[%clk 0:04:24.1]} 15... Rd7 {[%clk 0:03:51.8]} 16. Ra3 {[%clk 0:04:18.3]} 16...
Qe6 {[%clk 0:03:47.5]} 17. g3 {[%clk 0:04:11.3]} 17... Qe7 {[%clk 0:03:29.4]}
18. Rb3 {[%clk 0:04:07.5]} 18... Rhd8 {[%clk 0:03:19]} 19. Kd1 {[%clk
0:04:04.9]} 19... Ng4 {[%clk 0:03:06.1]} 20. Rf1 {[%clk 0:04:02.2]} 20... Na5
{[%clk 0:02:45.9]} 21. Rb5 {[%clk 0:03:58.2]} 21... Rd5 {[%clk 0:02:35.4]} 22.
Nd4 {[%clk 0:03:51.6]} 22... Rxb5 {[%clk 0:02:32.3]} 23. axb5 {[%clk 0:03:46.1]}
23... c6 {[%clk 0:02:17.3]} 24. bxc6 {[%clk 0:03:44.1]} 24... Nxc6 {[%clk
0:02:17.2]} 25. Bb2 {[%clk 0:03:38.1]} 25... Nxd4 {[%clk 0:02:15.5]} 26. cxd4
{[%clk 0:03:36.5]} 26... Qb4 {[%clk 0:02:10.4]} 27. Bc3 {[%clk 0:03:33.9]} 27...
Qb1+ {[%clk 0:02:07.9]} 28. Ke2 {[%clk 0:03:32.8]} 28... Qb5+ {[%clk 0:02:04.7]}
29. Ke1 {[%clk 0:03:30.6]} 29... Rd6 {[%clk 0:01:58.7]} 30. f3 {[%clk
0:03:28.8]} 30... exf3 {[%clk 0:01:56.7]} 31. Rxf3 {[%clk 0:03:27.2]} 31... Ra6
{[%clk 0:01:54.8]} 32. Rf4 {[%clk 0:03:21.8]} 32... Nf6 {[%clk 0:01:52.2]} 33.
g4 {[%clk 0:03:19.8]} 33... Qb1+ {[%clk 0:01:40.9]} 34. Ke2 {[%clk 0:03:14]}
34... Ra3 {[%clk 0:01:35.7]} 35. g5 {[%clk 0:03:10.2]} 35... hxg5 {[%clk
0:01:33.9]} 36. hxg5 {[%clk 0:03:08.9]} 36... Nd5 {[%clk 0:01:29.5]} 37. Rxf7
{[%clk 0:03:06.6]} 37... Nxc3+ {[%clk 0:01:27.5]} 38. dxc3 {[%clk 0:03:05]}
38... Qc2+ {[%clk 0:01:26]} 39. Kf3 {[%clk 0:03:02.5]} 39... Qxc3 {[%clk
0:01:22.2]} 40. Re7 {[%clk 0:02:58.9]} 40... Qc6+ {[%clk 0:01:17.6]} 41. Re4
{[%clk 0:02:55.2]} 41... Qd7 {[%clk 0:01:04.2]} 42. Kf4 {[%clk 0:02:53]} 42...
Qf7+ {[%clk 0:01:02.8]} 43. Kg4 {[%clk 0:02:49.7]} 43... Ra2 {[%clk 0:01:01.5]}
44. Rf4 {[%clk 0:02:46.6]} 44... Rg2+ {[%clk 0:00:58.7]} 45. Kh3 {[%clk
0:02:40.2]} 45... Qxf4 {[%clk 0:00:50.9]} 46. exf4 {[%clk 0:02:36.6]} 46... Rd2
{[%clk 0:00:45.9]} 47. Kg4 {[%clk 0:02:34.9]} 47... Rxd4 {[%clk 0:00:45.1]} 48.
Kf5 {[%clk 0:02:33.9]} 48... Rd7 {[%clk 0:00:42.9]} 49. Ke6 {[%clk 0:02:32.7]}
49... a5 {[%clk 0:00:41.6]} 50. f5 {[%clk 0:02:31.9]} 50... a4 {[%clk
0:00:40.9]} 51. f6 {[%clk 0:02:31.1]} 51... gxf6 {[%clk 0:00:39.5]} 52. gxf6
{[%clk 0:02:30.1]} 52... a3 {[%clk 0:00:38.5]} 53. f7 {[%clk 0:02:29.2]} 53...
Rxf7 {[%clk 0:00:37.7]} 54. Kxf7 {[%clk 0:02:28.2]} 54... a2 {[%clk 0:00:37.6]}
55. Ke6 {[%clk 0:02:27.5]} 55... a1=Q {[%clk 0:00:37.3]} 56. Kd6 {[%clk
0:02:26.8]} 56... Qc3 {[%clk 0:00:35.5]} 57. Kd5 {[%clk 0:02:25.4]} 57... b5
{[%clk 0:00:35.4]} 58. Kd6 {[%clk 0:02:24.2]} 58... b4 {[%clk 0:00:35.3]} 59.
Kd5 {[%clk 0:02:22.8]} 59... b3 {[%clk 0:00:35.2]} 60. Ke4 {[%clk 0:02:21.9]}
60... b2 {[%clk 0:00:35.1]} 61. Kd5 {[%clk 0:02:21.2]} 61... b1=Q {[%clk
0:00:32.6]} 62. Ke6 {[%clk 0:02:19.2]} 62... Qbe1+ {[%clk 0:00:29.4]} 63. Kd5
{[%clk 0:02:18.1]} 63... Qd1+ {[%clk 0:00:28.2]} 64. Ke4 {[%clk 0:02:14.7]}
64... Qce1+ {[%clk 0:00:26.7]} 65. Kf4 {[%clk 0:02:13.1]} 65... Qdd2+ {[%clk
0:00:25.5]} 66. Kf3 {[%clk 0:02:10.7]} 66... Qdf2+ {[%clk 0:00:24.4]} 67. Kg4
{[%clk 0:02:08.5]} 67... Qeg1+ {[%clk 0:00:23.9]} 68. Kh5 {[%clk 0:02:07.6]}
68... Qfh2# {[%clk 0:00:23.8]} 0-1

[Event "Live Chess"]
[Site "Chess.com"]
[Date "2023.05.21"]
[Round "-"]
[White "ZackirtyChess"]
[Black "chessfiction"]
[Result "0-1"]
[WhiteElo "1164"]
[BlackElo "2356"]
[TimeControl "300"]
[EndTime "16:00:45 PDT"]
[Termination "chessfiction won by checkmate"]

1. f4 {[%clk 0:04:58]} 1... e5 {[%clk 0:04:59.9]} 2. fxe5 {[%clk 0:04:56]} 2...
d6 {[%clk 0:04:59.8]} 3. exd6 {[%clk 0:04:54.2]} 3... Bxd6 {[%clk 0:04:59.7]} 4.
Nf3 {[%clk 0:04:51.6]} 4... g5 {[%clk 0:04:58.5]} 5. g3 {[%clk 0:04:42.2]} 5...
h5 {[%clk 0:04:53.2]} 6. e4 {[%clk 0:04:35.3]} 6... h4 {[%clk 0:04:52.2]} 7. Bg2
{[%clk 0:04:26.9]} 7... Bg4 {[%clk 0:04:49.9]} 8. gxh4 {[%clk 0:04:24.5]} 8...
gxh4 {[%clk 0:04:46]} 9. h3 {[%clk 0:04:22.5]} 9... Bg3+ {[%clk 0:04:44.9]} 10.
Kf1 {[%clk 0:04:19.3]} 10... Bh5 {[%clk 0:04:44.1]} 11. Nc3 {[%clk 0:04:13.5]}
11... Nc6 {[%clk 0:04:28.4]} 12. Ne2 {[%clk 0:04:10.6]} 12... Qf6 {[%clk
0:04:25]} 13. Nxg3 {[%clk 0:04:07.2]} 13... hxg3 {[%clk 0:04:23.4]} 14. d3
{[%clk 0:03:55.5]} 14... Nge7 {[%clk 0:04:21.2]} 15. Bg5 {[%clk 0:03:53.1]}
15... Qg6 {[%clk 0:04:16]} 16. h4 {[%clk 0:03:35.5]} 16... O-O-O {[%clk
0:04:12.7]} 17. Bxe7 {[%clk 0:03:31.9]} 17... Nxe7 {[%clk 0:04:11.5]} 18. Ne5
{[%clk 0:03:30.3]} 18... Qf6+ {[%clk 0:04:08.1]} 19. Bf3 {[%clk 0:03:25.1]}
19... Qxe5 {[%clk 0:04:05.6]} 20. Bxh5 {[%clk 0:03:23.4]} 20... Rxh5 {[%clk
0:04:05.5]} 21. d4 {[%clk 0:03:20.1]} 21... Qxe4 {[%clk 0:04:04.1]} 22. Qxh5
{[%clk 0:03:18.3]} 22... Qxh1+ {[%clk 0:04:03.1]} 23. Ke2 {[%clk 0:03:15.9]}
23... Qe4+ {[%clk 0:04:01.7]} 24. Kd2 {[%clk 0:03:12.5]} 24... Rxd4+ {[%clk
0:04:00.8]} 25. Kc3 {[%clk 0:03:10.9]} 25... Qe3# {[%clk 0:03:59.9]} 0-1

[Event "Live Chess"]
[Site "Chess.com"]
[Date "2023.05.21"]
[Round "-"]
[White "Doge_Dandolo"]
[Black "CeladonFish"]
[Result "1-0"]
[WhiteElo "2029"]
[BlackElo "1127"]
[TimeControl "300"]
[EndTime "16:00:47 PDT"]
[Termination "Doge_Dandolo won by resignation"]

1. Nf3 {[%clk 0:04:56.7]} 1... d5 {[%clk 0:04:58.5]} 2. c4 {[%clk 0:04:50.8]}
2... Nf6 {[%clk 0:04:58]} 3. cxd5 {[%clk 0:04:49.3]} 3... Nxd5 {[%clk
0:04:57.6]} 4. e4 {[%clk 0:04:48.6]} 4... Nf6 {[%clk 0:04:57.1]} 5. Nc3 {[%clk
0:04:47.4]} 5... g6 {[%clk 0:04:55.8]} 6. e5 {[%clk 0:04:46.1]} 6... Nd5 {[%clk
0:04:53.8]} 7. Nxd5 {[%clk 0:04:45.1]} 7... Qxd5 {[%clk 0:04:53.2]} 8. d4 {[%clk
0:04:44]} 8... Qd8 {[%clk 0:04:52]} 9. Bc4 {[%clk 0:04:42.1]} 9... e6 {[%clk
0:04:48.8]} 10. Bg5 {[%clk 0:04:39.7]} 10... Be7 {[%clk 0:04:44.1]} 11. Bxe7
{[%clk 0:04:37.4]} 11... Qxe7 {[%clk 0:04:43.6]} 12. Qd2 {[%clk 0:04:35.4]}
12... Nc6 {[%clk 0:04:37.7]} 13. O-O {[%clk 0:04:33.5]} 13... O-O {[%clk
0:04:33.4]} 14. Ng5 {[%clk 0:04:31]} 14... a6 {[%clk 0:04:21.4]} 15. Ne4 {[%clk
0:04:27.3]} 15... b5 {[%clk 0:04:19.2]} 16. Qh6 {[%clk 0:04:23.6]} 16... bxc4
{[%clk 0:04:03.8]} 17. Nf6+ {[%clk 0:04:22.2]} 1-0